fUST/lending_fUST_20250828
["ID","MTS","AMOUNT","RATE_DAILY","PERIOD"]
[381796835,1756351855330,-500.0,0.00021073,2]
[381796836,1756351855340,-500.0,0.00021073,2]
[381796837,1756351855348,-500.0,0.00021073,2]
[381796838,1756351855358,-500.0,0.00021073,2]
[381796839,1756351855367,-500.0,0.00021073,2]
[381796840,1756351855375,-500.0,0.00021073,2]
[381796841,1756351855384,-500.0,0.00021073,2]
[381796842,1756351855394,-500.0,0.00021073,2]
[381796843,1756351855403,-1313.70471782,0.00021076,2]
[381796844,1756351855413,-151.0,0.000211,3]
[381796845,1756351855423,-500.0,0.00021151,2]
[381796846,1756351855432,-500.0,0.00021151,2]
[381796847,1756351855441,-500.0,0.00021151,2]
[381796848,1756351855451,-151.0,0.00021151,2]
[381796849,1756351855460,-151.0,0.00021151,2]
[381796850,1756351855469,-151.0,0.00021151,2]
[381796851,1756351855479,-500.0,0.00021151,2]
[381796852,1756351855488,-500.0,0.00021151,2]
[381796853,1756351855497,-500.0,0.00021151,2]
[381796854,1756351855506,-151.0,0.00021151,2]
[381796855,1756351855516,-151.0,0.00021151,2]
[381796856,1756351855525,-500.0,0.00021151,2]
[381796857,1756351855535,-500.0,0.00021151,2]
[381796858,1756351855544,-151.43634913,0.00021151,2]
[381796859,1756351855554,-151.0,0.00021151,2]
[381796860,1756351855563,-151.0,0.00021151,2]
[381796861,1756351855572,-151.0,0.00021151,2]
[381796862,1756351855581,-500.0,0.00021151,2]
[381796863,1756351855590,-500.0,0.00021151,2]
[381796864,1756351855600,-500.0,0.00021151,2]
[381796865,1756351855609,-500.0,0.00021151,2]
[381796866,1756351855619,-151.0,0.00021151,2]
[381796867,1756351855628,-151.0,0.00021151,2]
[381796868,1756351855639,-500.0,0.00021151,2]
[381796869,1756351855648,-151.0,0.00021151,2]
[381796870,1756351855657,-151.0,0.00021151,2]
[381796871,1756351855666,-151.0,0.00021151,2]
[381796872,1756351855675,-500.0,0.00021151,2]
[381796873,1756351855684,-500.0,0.00021151,2]
[381796874,1756351855694,-151.0,0.00021151,2]
[381796875,1756351855703,-151.80152458,0.00021151,2]
[381796876,1756351855712,-151.0,0.00021151,2]
[381796877,1756351855721,-151.0,0.00021151,2]
[381796878,1756351855731,-500.0,0.00021151,2]
[381796879,1756351855740,-500.0,0.00021151,2]
[381796880,1756351855749,-500.0,0.00021151,2]
[381796881,1756351855758,-1093.0,0.00021151,2]
[381796882,1756351855772,-337.0,0.00021161,2]
[381796883,1756351855781,-1266.29,0.00021175,2]
[381796884,1756351855791,-480.0,0.00021175,2]
[381796885,1756351855800,-4547.58,0.00021175,2]
[381796886,1756351855809,-480.0,0.00021175,2]
[381796887,1756351855818,-820.35,0.00021175,2]
[381796888,1756351855827,-545.08377483,0.00021176,2]
[381796889,1756351855838,-1787.86,0.00021176,2]
[381796890,1756351855847,-663.51,0.00021176,2]
[381796891,1756351855857,-614.48,0.00021176,2]
[381796892,1756351855866,-480.0,0.00021176,2]
[381796893,1756351855875,-3429.46,0.00021176,2]
[381796894,1756351855886,-2001.5,0.00021176,2]
[381796895,1756351855896,-1331.76,0.00021176,2]
[381796896,1756351855906,-574.97,0.00021176,2]
[381796897,1756351855914,-488.76501945,0.00021176,2]
[381796898,1756351855924,-1697.51,0.00021176,2]
[381796899,1756351855933,-772.38,0.00021176,2]
[381796900,1756351855942,-1314.65,0.00021176,2]
[381796901,1756351855951,-480.0,0.00021176,2]
[381796902,1756351855961,-1549.99,0.00021176,2]
[381796903,1756351855972,-605.84,0.00021176,2]
[381796904,1756351855981,-777.36,0.00021176,2]
[381796905,1756351855991,-480.0,0.00021176,2]
[381796906,1756351856000,-480.0,0.00021176,2]
[381796907,1756351856010,-480.0,0.00021176,2]
[381796908,1756351856020,-1649.91,0.00021176,2]
[381796909,1756351856031,-1054.59,0.00021176,2]
[381796910,1756351856041,-1815.18,0.00021176,2]
[381796911,1756351856050,-1824.07,0.00021176,2]
[381796912,1756351856059,-555.98,0.00021176,2]
[381796913,1756351856069,-480.0,0.00021176,2]
[381796914,1756351856078,-480.0,0.00021187,2]
[381796915,1756351856088,-480.0,0.00021187,2]
[381796916,1756351856097,-480.0,0.00021187,2]
[381796917,1756351856107,-481.42441539,0.00021187,2]
[381796918,1756351856116,-839.27,0.00021187,2]
[381796919,1756351856125,-480.0,0.00021187,2]
[381796920,1756351856134,-1284.77,0.00021187,2]
[381796921,1756351856144,-1216.01,0.00021187,2]
[381796922,1756351856155,-480.0,0.00021187,2]
[381796923,1756351856164,-1613.99,0.00021187,2]
[381796924,1756351856173,-629.98,0.00021187,2]
[381796925,1756351856183,-151.0,0.00021187,2]
[381796926,1756351856193,-153.668028,0.00021187,2]
[381796927,1756351856205,-480.0,0.00021187,2]
[381796928,1756351856214,-151.0,0.00021187,2]
[381796929,1756351856223,-151.0,0.00021187,2]
[381796930,1756351856232,-151.0,0.00021187,2]
[381796931,1756351856241,-151.0,0.00021187,2]
[381796932,1756351856251,-326.336599,0.00021187,2]
[381796933,1756351856263,-151.0,0.00021187,2]
[381796934,1756351856273,-326.336599,0.00021187,2]
[381796935,1756351856282,-471.64304,0.00021187,2]
[381796936,1756351856291,-326.336599,0.00021187,2]
[381796937,1756351856300,-326.336599,0.00021187,2]
[381796938,1756351856310,-471.64304,0.00021187,2]
[381796939,1756351856319,-471.64304,0.00021187,2]
[381796940,1756351856329,-1560.74,0.00021187,2]
[381796941,1756351856338,-471.64304,0.00021187,2]
[381796942,1756351856347,-151.0,0.00021187,2]
[381796943,1756351856357,-151.0,0.00021187,2]
[381796944,1756351856367,-480.0,0.00021187,2]
[381796945,1756351856377,-1963.49,0.00021187,2]
[381796946,1756351856386,-151.0,0.00021187,2]
[381796947,1756351856395,-480.0,0.00021187,2]
[381796948,1756351856404,-438.11780381,0.00021187,2]
[381796949,1756351856414,-4222.52,0.00021187,2]
[381796950,1756351856429,-1017.553216,0.00021187,2]
[381796951,1756351856441,-1017.553216,0.00021187,2]
[381796952,1756351856452,-151.0,0.00021187,2]
[381796953,1756351856465,-181.630564,0.00021187,2]
[381796954,1756351856478,-151.0,0.00021187,2]
[381796955,1756351856488,-207.20499,0.00021187,2]
[381796956,1756351856498,-1017.553216,0.00021187,2]
[381796957,1756351856508,-181.630564,0.00021187,2]
[381796958,1756351856518,-207.20499,0.00021187,2]
[381796959,1756351856530,-1017.553216,0.00021187,2]
[381796960,1756351856539,-181.630564,0.00021187,2]
[381796961,1756351856548,-207.20499,0.00021187,2]
[381796962,1756351856559,-151.0,0.00021187,2]
[381796963,1756351856567,-207.20499,0.00021187,2]
[381796964,1756351856576,-181.630564,0.00021187,2]
[381796965,1756351856586,-151.0,0.00021187,2]
[381796966,1756351856595,-151.0,0.00021187,2]
[381796967,1756351856604,-151.0,0.00021187,2]
[381796968,1756351856613,-151.0,0.00021187,2]
[381796969,1756351856622,-2363.03,0.00021187,2]
[381796970,1756351856631,-151.0,0.00021187,2]
[381796971,1756351856641,-151.0,0.00021187,2]
[381796972,1756351856650,-649.06,0.00021187,2]
[381796973,1756351856659,-408.756338,0.00021187,2]
[381796974,1756351856668,-151.0,0.00021187,2]
[381796975,1756351856678,-183.468325,0.00021187,2]
[381796976,1756351856687,-408.756338,0.00021187,2]
[381796977,1756351856698,-480.0,0.00021187,2]
[381796978,1756351856708,-183.468325,0.00021187,2]
[381796979,1756351856717,-408.756338,0.00021187,2]
[381796980,1756351856728,-183.468325,0.00021187,2]
[381796981,1756351856737,-1241.29,0.00021187,2]
[381796982,1756351856746,-183.468325,0.00021187,2]
[381796983,1756351856755,-408.756338,0.00021187,2]
[381796984,1756351856767,-480.0,0.00021187,2]
[381796985,1756351856776,-230.572196,0.00021187,2]
[381796986,1756351856786,-151.0,0.00021187,2]
[381796987,1756351856795,-151.0,0.00021187,2]
[381796988,1756351856805,-151.0,0.00021187,2]
[381796989,1756351856814,-151.0,0.00021187,2]
[381796990,1756351856824,-151.0,0.00021187,2]
[381796991,1756351856834,-480.0,0.00021187,2]
[381796992,1756351856845,-151.0,0.00021187,2]
[381796993,1756351856855,-151.0,0.00021187,2]
[381796994,1756351856864,-480.0,0.00021189,2]
[381796995,1756351856875,-622.0,0.00021189,2]
[381796996,1756351856884,-755.66,0.00021189,2]
[381796997,1756351856894,-480.0,0.00021189,2]
[381796998,1756351856903,-480.0,0.00021189,2]
[381796999,1756351856912,-822.74,0.00021189,2]
[381797000,1756351856922,-531.47471943,0.00021189,2]
[381797001,1756351856932,-1185.9,0.00021189,2]
[381797002,1756351856942,-1784.19,0.00021189,2]
[381797003,1756351856951,-949.51,0.00021189,2]
[381797004,1756351856961,-480.0,0.00021189,2]
[381797005,1756351856972,-632.4,0.00021189,2]
[381797006,1756351856983,-480.0,0.00021189,2]
[381797007,1756351856993,-480.0,0.00021189,2]
[381797008,1756351857003,-682.45,0.00021189,2]
[381797009,1756351857013,-484.04,0.00021189,2]
[381797010,1756351857022,-601.04,0.00021189,2]
[381797011,1756351857031,-500.0,0.00021189,2]
[381797012,1756351857040,-759.31,0.00021189,2]
[381797013,1756351857049,-807.4,0.00021189,2]
[381797014,1756351857058,-768.19,0.00021189,2]
[381797015,1756351857067,-510.26,0.00021189,2]
[381797016,1756351857076,-532.02,0.00021189,2]
[381797017,1756351857086,-681.41,0.00021189,2]
[381797018,1756351857095,-1242.33,0.00021189,2]
[381797019,1756351857104,-602.62,0.00021189,2]
[381797020,1756351857113,-480.0,0.00021189,2]
[381797021,1756351857122,-1145.97,0.00021189,2]
[381797022,1756351857132,-632.39,0.00021189,2]
[381797023,1756351857142,-1785.89,0.00021189,2]
[381797024,1756351857151,-1142.3,0.00021189,2]
[381797025,1756351857160,-480.0,0.00021189,2]
[381797026,1756351857169,-480.0,0.00021189,2]
[381797027,1756351857178,-382.51777667,0.00021189,2]
[381797028,1756351857188,-512.03,0.00021189,2]
[381797029,1756351857197,-903.2,0.00021189,2]
[381797030,1756351857206,-627.33,0.00021189,2]
[381797031,1756351857216,-584.01,0.00021189,2]
[381797032,1756351857225,-525.48,0.00021189,2]
[381797033,1756351857234,-1073.96,0.00021189,2]
[381797034,1756351857244,-598.74,0.00021189,2]
[381797035,1756351857253,-738.84,0.00021189,2]
[381797036,1756351857262,-480.0,0.00021189,2]
[381797037,1756351857271,-538.85,0.00021189,2]
[381797038,1756351857280,-151.0,0.00021189,2]
[381797039,1756351857289,-526.96,0.00021189,2]
[381797040,1756351857298,-212.282079,0.00021189,2]
[381797041,1756351857308,-212.282079,0.00021189,2]
[381797042,1756351857317,-151.0,0.00021189,2]
[381797043,1756351857325,-212.282079,0.00021189,2]
[381797044,1756351857334,-151.0,0.00021189,2]
[381797045,1756351857344,-212.282079,0.00021189,2]
[381797046,1756351857353,-151.0,0.00021189,2]
[381797047,1756351857362,-480.0,0.00021189,2]
[381797048,1756351857371,-211.760048,0.00021189,2]
[381797049,1756351857380,-151.0,0.00021189,2]
[381797050,1756351857389,-250.147672,0.00021189,2]
[381797051,1756351857398,-480.0,0.00021189,2]
[381797052,1756351857407,-151.0,0.00021189,2]
[381797053,1756351857416,-480.0,0.00021189,2]
[381797054,1756351857425,-151.0,0.00021189,2]
[381797055,1756351857434,-151.0,0.00021189,2]
[381797056,1756351857443,-990.1,0.00021189,2]
[381797057,1756351857452,-585.91,0.00021189,2]
[381797058,1756351857461,-480.0,0.00021189,2]
[381797059,1756351857471,-1489.35,0.00021189,2]
[381797060,1756351857480,-480.0,0.00021189,2]
[381797061,1756351857488,-480.0,0.00021189,2]
[381797062,1756351857498,-480.0,0.00021189,2]
[381797063,1756351857507,-480.0,0.00021189,2]
[381797064,1756351857517,-688.92,0.00021189,2]
[381797065,1756351857526,-480.0,0.00021189,2]
[381797066,1756351857535,-480.0,0.00021189,2]
[381797067,1756351857544,-785.94,0.00021189,2]
[381797068,1756351857553,-480.0,0.00021189,2]
[381797069,1756351857562,-480.0,0.00021189,2]
[381797070,1756351857571,-480.0,0.00021189,2]
[381797071,1756351857580,-480.0,0.00021189,2]
[381797072,1756351857590,-540.97,0.00021189,2]
[381797073,1756351857775,-480.0,0.00021189,2]
[381797074,1756351857785,-480.0,0.00021189,2]
[381797075,1756351857794,-819.28,0.00021189,2]
[381797076,1756351857803,-1050.11,0.00021189,2]
[381797077,1756351857812,-480.0,0.00021189,2]
[381797078,1756351857821,-480.0,0.00021189,2]
[381797079,1756351857830,-480.0,0.00021189,2]
[381797080,1756351857841,-546.64,0.00021189,2]
[381797081,1756351857850,-433.65227615,0.00021189,2]
[381797086,1756351938373,414.46787298,0.000199,2]
[381797092,1756352011564,164.84,0.00030627,60]
[381797093,1756352031595,771.8164183,0.00027397,120]
[381797094,1756352114608,445.41766594,0.000199,2]
[381797095,1756352261697,328.52631116,0.0001949,2]
[381797097,1756352290402,430.57041037,0.000199,2]
[381797099,1756352324452,158.91,0.0002002,5]
[381797100,1756352465583,416.21806329,0.000199,2]
[381797105,1756352641877,402.34412776,0.000199,2]
[381797106,1756352816308,388.93265697,0.000199,2]
[381797107,1756352838638,1161.0,0.00019609,2]
[381797108,1756352843020,1161.0,0.00019703,2]
[381797109,1756352934765,316.12,0.00030662,60]
[381797110,1756352982475,269.03965269,0.000194,2]
[381797111,1756352989237,251.77838357,0.000199,2]
[381797112,1756352989263,124.18985153,0.000199,2]
[381797265,1756353037891,-354.0,0.00020149,2]
[381797266,1756353037900,-1714.33267929,0.0002022,2]
[381797267,1756353037909,-354.0,0.00020229,2]
[381797268,1756353037918,-168.0,0.00020232,2]
[381797269,1756353037927,-500.0,0.00020317,2]
[381797270,1756353037937,-500.0,0.00020317,2]
[381797271,1756353037946,-500.0,0.00020317,2]
[381797272,1756353037956,-1013.67033347,0.00020317,2]
[381797273,1756353037966,-300.89077025,0.00020317,2]
[381797274,1756353037975,-500.0,0.00020317,2]
[381797275,1756353037985,-243.86008317,0.00020317,2]
[381797276,1756353037994,-500.0,0.00020317,2]
[381797277,1756353038003,-217.33995167,0.00020317,2]
[381797278,1756353038012,-500.0,0.00020317,2]
[381797279,1756353038021,-500.0,0.00020317,2]
[381797280,1756353038030,-500.0,0.00020317,2]
[381797281,1756353038039,-1013.67033347,0.00020317,2]
[381797282,1756353038049,-500.0,0.00020317,2]
[381797283,1756353038058,-500.0,0.00020317,2]
[381797284,1756353038067,-500.0,0.00020317,2]
[381797285,1756353038076,-500.0,0.00020317,2]
[381797286,1756353038088,-1013.67033347,0.00020317,2]
[381797287,1756353038097,-500.0,0.00020317,2]
[381797288,1756353038106,-500.0,0.00020317,2]
[381797289,1756353038115,-500.0,0.00020317,2]
[381797290,1756353038124,-190.86868499,0.00020317,2]
[381797291,1756353038133,-487.31964391,0.00020317,2]
[381797292,1756353038142,-1013.67033347,0.00020317,2]
[381797293,1756353038152,-500.0,0.00020317,2]
[381797294,1756353038161,-500.0,0.00020317,2]
[381797295,1756353038171,-1013.67033347,0.00020317,2]
[381797296,1756353038185,-500.0,0.00020317,2]
[381797297,1756353038194,-500.0,0.00020317,2]
[381797298,1756353038204,-453.75211287,0.00020317,2]
[381797299,1756353038214,-500.0,0.00020317,2]
[381797300,1756353038224,-500.0,0.00020317,2]
[381797301,1756353038234,-1013.67033347,0.00020317,2]
[381797302,1756353038243,-500.0,0.00020317,2]
[381797303,1756353038253,-500.0,0.00020317,2]
[381797304,1756353038263,-1013.67033347,0.00020317,2]
[381797305,1756353038273,-500.0,0.00020317,2]
[381797306,1756353038282,-500.0,0.00020317,2]
[381797307,1756353038291,-500.0,0.00020317,2]
[381797308,1756353038300,-500.0,0.00020317,2]
[381797309,1756353038310,-1013.67033347,0.00020317,2]
[381797310,1756353038319,-500.0,0.00020317,2]
[381797311,1756353038329,-500.0,0.00020317,2]
[381797312,1756353038339,-500.0,0.00020317,2]
[381797313,1756353038349,-1013.67033347,0.00020317,2]
[381797314,1756353038359,-500.0,0.00020317,2]
[381797315,1756353038368,-500.0,0.00020317,2]
[381797316,1756353038378,-500.0,0.00020317,2]
[381797317,1756353038388,-1013.67033347,0.00020317,2]
[381797318,1756353038399,-500.0,0.00020317,2]
[381797319,1756353038410,-500.0,0.00020317,2]
[381797320,1756353038420,-500.0,0.00020317,2]
[381797321,1756353038430,-1013.67033347,0.00020317,2]
[381797322,1756353038439,-500.0,0.00020317,2]
[381797323,1756353038448,-448.08083142,0.00020317,2]
[381797324,1756353038457,-500.0,0.00020317,2]
[381797325,1756353038467,-1013.67033347,0.00020317,2]
[381797326,1756353038476,-500.0,0.00020317,2]
[381797327,1756353038485,-328.27022356,0.00020317,2]
[381797328,1756353038496,-500.0,0.00020317,2]
[381797329,1756353038506,-1013.67033347,0.00020317,2]
[381797330,1756353038515,-500.0,0.00020317,2]
[381797331,1756353038524,-500.0,0.00020317,2]
[381797332,1756353038534,-500.0,0.00020317,2]
[381797333,1756353038543,-1013.67033347,0.00020317,2]
[381797334,1756353038552,-500.0,0.00020317,2]
[381797335,1756353038562,-1013.67033347,0.00020317,2]
[381797336,1756353038571,-500.0,0.00020317,2]
[381797337,1756353038581,-500.0,0.00020317,2]
[381797338,1756353038590,-1013.67033347,0.00020317,2]
[381797339,1756353038599,-500.0,0.00020317,2]
[381797340,1756353038608,-500.0,0.00020317,2]
[381797341,1756353038617,-1013.67033347,0.00020317,2]
[381797342,1756353038626,-500.0,0.00020317,2]
[381797343,1756353038635,-500.0,0.00020317,2]
[381797344,1756353038645,-1013.67033347,0.00020317,2]
[381797345,1756353038654,-1013.67033347,0.00020317,2]
[381797346,1756353038666,-500.0,0.00020317,2]
[381797347,1756353038675,-1013.67033347,0.00020317,2]
[381797348,1756353038685,-500.0,0.00020317,2]
[381797349,1756353038694,-500.0,0.00020317,2]
[381797350,1756353038703,-500.0,0.00020317,2]
[381797351,1756353038713,-1013.67033347,0.00020317,2]
[381797352,1756353038722,-500.0,0.00020317,2]
[381797353,1756353038732,-1013.67033347,0.00020317,2]
[381797354,1756353038742,-500.0,0.00020317,2]
[381797355,1756353038751,-1013.67033347,0.00020317,2]
[381797356,1756353038760,-500.0,0.00020317,2]
[381797357,1756353038770,-500.0,0.00020317,2]
[381797358,1756353038781,-500.0,0.00020317,2]
[381797359,1756353038791,-1013.67033347,0.00020317,2]
[381797360,1756353038800,-500.0,0.00020317,2]
[381797361,1756353038810,-500.0,0.00020317,2]
[381797362,1756353038820,-1013.67033347,0.00020317,2]
[381797363,1756353038830,-500.0,0.00020317,2]
[381797364,1756353038840,-1013.67033347,0.00020317,2]
[381797365,1756353038850,-500.0,0.00020317,2]
[381797366,1756353038861,-1013.67033347,0.00020317,2]
[381797367,1756353038872,-500.0,0.00020317,2]
[381797368,1756353038882,-1013.67033347,0.00020317,2]
[381797369,1756353038892,-500.0,0.00020317,2]
[381797370,1756353038901,-500.0,0.00020317,2]
[381797371,1756353038911,-1013.67033347,0.00020317,2]
[381797372,1756353038921,-500.0,0.00020317,2]
[381797373,1756353038930,-1013.67033347,0.00020317,2]
[381797374,1756353038940,-500.0,0.00020317,2]
[381797375,1756353038950,-1013.67033347,0.00020317,2]
[381797376,1756353038959,-1013.67033347,0.00020317,2]
[381797377,1756353038969,-500.0,0.00020317,2]
[381797378,1756353038979,-500.0,0.00020317,2]
[381797379,1756353038988,-1013.67033347,0.00020317,2]
[381797380,1756353038998,-1013.67033347,0.00020317,2]
[381797381,1756353039007,-500.0,0.00020317,2]
[381797382,1756353039017,-500.0,0.00020317,2]
[381797383,1756353039026,-1013.67033347,0.00020317,2]
[381797384,1756353039036,-1013.67033347,0.00020317,2]
[381797385,1756353039045,-1013.67033347,0.00020317,2]
[381797386,1756353039055,-1013.67033347,0.00020317,2]
[381797387,1756353039064,-1013.67033347,0.00020317,2]
[381797388,1756353039075,-500.0,0.00020317,2]
[381797389,1756353039087,-1013.67033347,0.00020317,2]
[381797390,1756353039097,-500.0,0.00020317,2]
[381797391,1756353039106,-1013.67033347,0.00020317,2]
[381797392,1756353039116,-500.0,0.00020317,2]
[381797393,1756353039126,-1013.67033347,0.00020317,2]
[381797394,1756353039135,-1013.67033347,0.00020317,2]
[381797395,1756353039145,-500.0,0.00020317,2]
[381797396,1756353039155,-500.0,0.00020317,2]
[381797397,1756353039164,-1013.67033347,0.00020317,2]
[381797398,1756353039174,-500.0,0.00020317,2]
[381797399,1756353039185,-1013.67033347,0.00020317,2]
[381797400,1756353039195,-500.0,0.00020317,2]
[381797401,1756353039205,-500.0,0.00020317,2]
[381797402,1756353039215,-1013.67033347,0.00020317,2]
[381797403,1756353039225,-500.0,0.00020317,2]
[381797404,1756353039235,-1013.67033347,0.00020317,2]
[381797405,1756353039244,-500.0,0.00020317,2]
[381797406,1756353039254,-1013.67033347,0.00020317,2]
[381797407,1756353039264,-500.0,0.00020317,2]
[381797408,1756353039274,-1013.67033347,0.00020317,2]
[381797409,1756353039284,-500.0,0.00020317,2]
[381797410,1756353039296,-1013.67033347,0.00020317,2]
[381797411,1756353039307,-1013.67033347,0.00020317,2]
[381797412,1756353039317,-500.0,0.00020317,2]
[381797413,1756353039328,-500.0,0.00020317,2]
[381797414,1756353039339,-1013.67033347,0.00020317,2]
[381797415,1756353039351,-500.0,0.00020317,2]
[381797416,1756353039362,-1013.67033347,0.00020317,2]
[381797417,1756353039372,-1013.67033347,0.00020317,2]
[381797418,1756353039382,-500.0,0.00020317,2]
[381797419,1756353039392,-1013.67033347,0.00020317,2]
[381797420,1756353039402,-1013.67033347,0.00020317,2]
[381797421,1756353039412,-500.0,0.00020317,2]
[381797422,1756353039422,-500.0,0.00020317,2]
[381797423,1756353039431,-1013.67033347,0.00020317,2]
[381797424,1756353039441,-1013.67033347,0.00020317,2]
[381797425,1756353039452,-500.0,0.00020317,2]
[381797426,1756353039463,-1013.67033347,0.00020317,2]
[381797427,1756353039473,-1013.67033347,0.00020317,2]
[381797428,1756353039483,-1013.67033347,0.00020317,2]
[381797429,1756353039492,-1013.67033347,0.00020317,2]
[381797430,1756353039502,-1013.67033347,0.00020317,2]
[381797431,1756353039511,-500.0,0.00020317,2]
[381797432,1756353039521,-180.30718534,0.00020317,2]
[381797433,1756353039532,-525.84240993,0.00020318,2]
[381797434,1756353039542,-300.0,0.00020318,2]
[381797435,1756353039551,-300.0,0.00020318,2]
[381797436,1756353039561,-300.0,0.00020318,2]
[381797437,1756353039571,-300.0,0.00020318,2]
[381797438,1756353039580,-300.0,0.00020318,2]
[381797439,1756353039590,-1200.0,0.00020318,2]
[381797440,1756353039600,-50000.0,0.00020319,2]
[381797441,1756353039611,-1200.0,0.00020319,2]
[381797442,1756353039622,-500.0,0.0002032,2]
[381797443,1756353039631,-6770.5938252,0.00020321,2]
[381797444,1756353039641,-20771.0597385,0.00020321,2]
[381797445,1756353039651,-1775.6,0.00020392,3]
[381797447,1756353039661,-887.8,0.00020392,3]
[381797449,1756353039671,-443.9,0.00020392,3]
[381797451,1756353039681,-151.0,0.000204,3]
[381797453,1756353039691,-151.0,0.000204,4]
[381797455,1756353039701,-665.89,0.000204,3]
[381797457,1756353039711,-861000.68,0.000204,2]
[381797459,1756353039720,-480.0,0.00020401,2]
[381797461,1756353039730,-480.0,0.00020401,2]
[381797463,1756353039740,-865.81,0.00020401,2]
[381797465,1756353039749,-1028.35,0.00020401,2]
[381797467,1756353039760,-480.0,0.00020401,2]
[381797469,1756353039770,-480.0,0.0002041,2]
[381797471,1756353039779,-999.61,0.0002041,2]
[381797473,1756353039789,-480.0,0.0002041,2]
[381797475,1756353039799,-480.0,0.0002041,2]
[381797478,1756353039810,-480.0,0.0002041,2]
[381797480,1756353039820,-480.0,0.0002041,2]
[381797482,1756353039830,-480.0,0.0002041,2]
[381797484,1756353039840,-480.0,0.0002041,2]
[381797486,1756353039851,-480.0,0.0002041,2]
[381797488,1756353039860,-480.0,0.0002041,2]
[381797490,1756353039870,-517.52,0.0002041,2]
[381797492,1756353039879,-480.0,0.0002041,2]
[381797494,1756353039889,-480.0,0.0002041,2]
[381797496,1756353039899,-480.0,0.0002041,2]
[381797498,1756353039909,-480.0,0.0002041,2]
[381797500,1756353039918,-480.0,0.0002041,2]
[381797502,1756353039928,-481.4890296,0.0002041,2]
[381797505,1756353039939,-480.0,0.0002041,2]
[381797508,1756353039949,-480.0,0.0002041,2]
[381797510,1756353039958,-492.41,0.0002041,2]
[381797512,1756353039968,-480.0,0.0002041,2]
[381797514,1756353039977,-480.0,0.0002041,2]
[381797516,1756353039987,-480.0,0.0002041,2]
[381797518,1756353039997,-480.0,0.0002041,2]
[381797520,1756353040007,-480.0,0.0002041,2]
[381797522,1756353040017,-480.0,0.0002041,2]
[381797524,1756353040027,-480.0,0.0002041,2]
[381797526,1756353040036,-480.0,0.0002041,2]
[381797528,1756353040046,-480.0,0.0002041,2]
[381797530,1756353040056,-480.0,0.0002041,2]
[381797532,1756353040066,-480.0,0.0002041,2]
[381797534,1756353040075,-480.0,0.0002041,2]
[381797536,1756353040085,-660.58,0.0002041,2]
[381797538,1756353040095,-480.0,0.0002041,2]
[381797541,1756353040104,-480.0,0.0002041,2]
[381797543,1756353040115,-570.05533759,0.0002041,2]
[381797545,1756353040124,-480.0,0.0002041,2]
[381797547,1756353040134,-480.0,0.0002041,2]
[381797549,1756353040143,-480.0,0.0002041,2]
[381797551,1756353040153,-480.0,0.0002041,2]
[381797553,1756353040163,-480.0,0.0002041,2]
[381797555,1756353040173,-480.0,0.0002041,2]
[381797557,1756353040187,-480.0,0.0002041,2]
[381797559,1756353040196,-480.0,0.0002041,2]
[381797561,1756353040206,-480.0,0.0002041,2]